[Event "Titled Tuesday Blitz January 10 Early 2023"]
[White "Bartel, Mateusz"]
[Black "Djokovic, Nebojsa"]
[WhiteFideId "1112635"]
[BlackFideId "938300"]
[WhiteElo "2609"]
[BlackElo "2119"]
[Result "1-0"]
[Round "06"]
[TimeControl "180+2"]
[Date "2023.01.10"]
[WhiteClock "0:00:58"]
[BlackClock "0:00:03"]

1. e3 {[%clk 0:03:00]}  e6 {[%clk 0:02:59]} 2. b3 {[%clk 0:03:00]}  Nf6 {[%clk 0:02:59]} 3. Bb2 {[%clk 0:03:00]}  d5 {[%clk 0:02:59]} 4. f4 {[%clk 0:03:01]}  Bd6 {[%clk 0:02:53]} 5. Nf3 {[%clk 0:03:01]}  c5 {[%clk 0:02:53]} 6. Bb5+ {[%clk 0:02:59]}  Nc6 {[%clk 0:02:53]} 7. Bxc6+ {[%clk 0:02:58]}  bxc6 {[%clk 0:02:53]} 8. Nc3 {[%clk 0:02:59]}  O-O {[%clk 0:02:49]} 9. Na4 {[%clk 0:02:55]}  a5 {[%clk 0:02:22]} 10. d3 {[%clk 0:02:50]}  Qe7 {[%clk 0:02:19]} 11. Ne5 {[%clk 0:02:44]}  Bb7 {[%clk 0:02:12]} 12. O-O {[%clk 0:02:42]}  Ne8 {[%clk 0:02:01]} 13. c4 {[%clk 0:02:38]}  f6 {[%clk 0:02:01]} 14. Nf3 {[%clk 0:02:38]}  Nc7 {[%clk 0:01:59]} 15. Qd2 {[%clk 0:02:34]}  e5 {[%clk 0:01:42]} 16. fxe5 {[%clk 0:02:33]}  fxe5 {[%clk 0:01:43]} 17. e4 {[%clk 0:02:33]}  d4 {[%clk 0:01:26]} 18. Rf2 {[%clk 0:02:31]}  Ne6 {[%clk 0:01:26]} 19. g3 {[%clk 0:02:28]}  Rf7 {[%clk 0:01:22]} 20. Raf1 {[%clk 0:02:29]}  Bc7 {[%clk 0:01:16]} 21. Bc1 {[%clk 0:02:21]}  Raf8 {[%clk 0:01:15]} 22. Nh4 {[%clk 0:02:21]}  g6 {[%clk 0:01:15]} 23. Rxf7 {[%clk 0:02:19]}  Rxf7 {[%clk 0:01:15]} 24. Rxf7 {[%clk 0:02:19]}  Qxf7 {[%clk 0:01:15]} 25. Qf2 {[%clk 0:02:19]}  Bc8 {[%clk 0:01:02]} 26. Ba3 {[%clk 0:02:14]}  Qe7 {[%clk 0:00:59]} 27. Nf3 {[%clk 0:02:12]}  Bd6 {[%clk 0:00:53]} 28. Bc1 {[%clk 0:02:10]}  Bd7 {[%clk 0:00:50]} 29. Bh6 {[%clk 0:02:07]}  Nd8 {[%clk 0:00:37]} 30. Ng5 {[%clk 0:02:03]}  Nf7 {[%clk 0:00:37]} 31. Nxf7 {[%clk 0:02:02]}  Qxf7 {[%clk 0:00:37]} 32. Qxf7+ {[%clk 0:02:03]}  Kxf7 {[%clk 0:00:38]} 33. Bd2 {[%clk 0:02:03]}  Bg4 {[%clk 0:00:36]} 34. Kf2 {[%clk 0:02:02]}  Bd1 {[%clk 0:00:34]} 35. Bxa5 {[%clk 0:02:00]}  Bc2 {[%clk 0:00:35]} 36. Ke2 {[%clk 0:02:00]}  Be7 {[%clk 0:00:24]} 37. Bb6 {[%clk 0:01:47]}  Bb1 {[%clk 0:00:22]} 38. Bxc5 {[%clk 0:01:47]}  Bg5 {[%clk 0:00:16]} 39. b4 {[%clk 0:01:33]}  Bxa2 {[%clk 0:00:16]} 40. b5 {[%clk 0:01:34]}  cxb5 {[%clk 0:00:15]} 41. cxb5 {[%clk 0:01:34]}  Be6 {[%clk 0:00:13]} 42. b6 {[%clk 0:01:33]}  Bg4+ {[%clk 0:00:13]} 43. Kf2 {[%clk 0:01:31]}  Bc8 {[%clk 0:00:14]} 44. Bd6 {[%clk 0:01:24]}  Ke6 {[%clk 0:00:13]} 45. Bc7 {[%clk 0:01:24]}  Be7 {[%clk 0:00:13]} 46. Nb2 {[%clk 0:01:23]}  Ba6 {[%clk 0:00:13]} 47. Nc4 {[%clk 0:01:22]}  Bc5 {[%clk 0:00:08]} 48. Ke2 {[%clk 0:01:22]}  Bb7 {[%clk 0:00:06]} 49. Bxe5 {[%clk 0:01:20]}  Bxb6 {[%clk 0:00:06]} 50. Nxb6 {[%clk 0:01:18]}  Kxe5 {[%clk 0:00:07]} 51. Nc4+ {[%clk 0:01:18]}  Ke6 {[%clk 0:00:07]} 52. Na5 {[%clk 0:01:15]}  Ba8 {[%clk 0:00:04]} 53. Nb3 {[%clk 0:01:15]}  Ke5 {[%clk 0:00:04]} 54. Na5 {[%clk 0:01:14]}  g5 {[%clk 0:00:03]} 55. Kf3 {[%clk 0:01:13]}  h5 {[%clk 0:00:04]} 56. h3 {[%clk 0:01:13]}  Kd6 {[%clk 0:00:03]} 57. h4 {[%clk 0:01:14]}  gxh4 {[%clk 0:00:02]} 58. gxh4 {[%clk 0:01:15]}  Ke6 {[%clk 0:00:03]} 59. Kf4 {[%clk 0:01:15]}  Kd6 {[%clk 0:00:03]} 60. Kf5 {[%clk 0:01:11]}  Kc5 {[%clk 0:00:04]} 61. Nb3+ {[%clk 0:01:03]}  Kb4 {[%clk 0:00:04]} 62. Nxd4 {[%clk 0:01:04]}  Kc3 {[%clk 0:00:05]} 63. Nf3 {[%clk 0:01:03]}  Kxd3 {[%clk 0:00:05]} 64. Ng5 {[%clk 0:01:03]}  Ke3 {[%clk 0:00:03]} 65. e5 {[%clk 0:01:03]}  Kf2 {[%clk 0:00:03]} 66. Kf4 {[%clk 0:01:04]}  Bd5 {[%clk 0:00:03]} 67. e6 {[%clk 0:01:04]}  Kg2 {[%clk 0:00:03]} 68. e7 {[%clk 0:01:04]}  Bc6 {[%clk 0:00:04]} 69. Ne4 {[%clk 0:01:01]}  Kh3 {[%clk 0:00:03]} 70. Kg5 {[%clk 0:01:01]}  Be8 {[%clk 0:00:01]} 71. Nf6 {[%clk 0:01:00]}  Bf7 {[%clk 0:00:02]} 72. Nxh5 {[%clk 0:01:00]}  Be8 {[%clk 0:00:02]} 73. Ng7 {[%clk 0:01:00]}  Bf7 {[%clk 0:00:03]} 74. h5 {[%clk 0:01:00]}  Kg3 {[%clk 0:00:02]} 75. h6 {[%clk 0:01:01]}  Kf3 {[%clk 0:00:02]} 76. h7 {[%clk 0:01:01]}  Bg8 {[%clk 0:00:03]} 77. hxg8=Q {[%clk 0:00:58]} 1-0


[Site "https://www.chess.com"]

[Event "Titled Tuesday Blitz January 10 Early 2023"]
[White "Lymar, Vladislav"]
[Black "Karthik Rajaa"]
[WhiteFideId "14162180"]
[BlackFideId "25035215"]
[WhiteElo "2119"]
[BlackElo "2276"]
[Result "0-1"]
[Round "06"]
[TimeControl "180+2"]
[Date "2023.01.10"]
[WhiteClock "0:00:06"]
[BlackClock "0:00:51"]

1. e4 {[%clk 0:03:00]}  c6 {[%clk 0:02:59]} 2. d4 {[%clk 0:03:00]}  d5 {[%clk 0:03:00]} 3. e5 {[%clk 0:03:01]}  c5 {[%clk 0:02:57]} 4. dxc5 {[%clk 0:02:59]}  e6 {[%clk 0:02:58]} 5. a3 {[%clk 0:02:59]}  Bxc5 {[%clk 0:02:58]} 6. Nf3 {[%clk 0:02:58]}  Ne7 {[%clk 0:02:53]} 7. Bd3 {[%clk 0:02:58]}  Nbc6 {[%clk 0:02:49]} 8. O-O {[%clk 0:02:57]}  Ng6 {[%clk 0:02:48]} 9. b4 {[%clk 0:02:50]}  Bb6 {[%clk 0:02:48]} 10. Bxg6 {[%clk 0:02:47]}  hxg6 {[%clk 0:02:43]} 11. Nc3 {[%clk 0:01:58]}  a6 {[%clk 0:02:29]} 12. Re1 {[%clk 0:01:50]}  Bd7 {[%clk 0:02:26]} 13. Bg5 {[%clk 0:01:40]}  Qc7 {[%clk 0:02:21]} 14. Qd2 {[%clk 0:01:13]}  Rc8 {[%clk 0:02:12]} 15. Nd1 {[%clk 0:00:58]}  Ne7 {[%clk 0:02:07]} 16. Bxe7 {[%clk 0:00:51]}  Kxe7 {[%clk 0:02:05]} 17. Rc1 {[%clk 0:00:51]}  Rh5 {[%clk 0:01:50]} 18. Ne3 {[%clk 0:00:39]}  Qc3 {[%clk 0:01:50]} 19. Qd1 {[%clk 0:00:34]}  Bc6 {[%clk 0:01:38]} 20. Ng4 {[%clk 0:00:25]}  d4 {[%clk 0:01:28]} 21. Nd2 {[%clk 0:00:22]}  Bxg2 {[%clk 0:01:11]} 22. Kxg2 {[%clk 0:00:20]}  Qh3+ {[%clk 0:01:11]} 23. Kg1 {[%clk 0:00:20]}  Rg5 {[%clk 0:01:11]} 24. f3 {[%clk 0:00:17]}  d3+ {[%clk 0:01:09]} 25. Kh1 {[%clk 0:00:18]}  Rh8 {[%clk 0:00:54]} 26. Nf1 {[%clk 0:00:11]}  d2 {[%clk 0:00:51]} 27. Qxd2 {[%clk 0:00:07]}  Qxf3+ {[%clk 0:00:51]} 28. Qg2 {[%clk 0:00:07]}  Rxg4 {[%clk 0:00:50]} 29. Qxf3 {[%clk 0:00:06]}  Rg1# {[%clk 0:00:51]} 0-1


[Site "https://www.chess.com"]

[Event "Titled Tuesday Blitz January 10 Early 2023"]
[White "Torres Dominguez, David"]
[Black "Maksimovic, Bojan"]
[WhiteFideId "2220857"]
[BlackFideId "14408120"]
[WhiteElo "1994"]
[BlackElo "2486"]
[Result "1/2-1/2"]
[Round "06"]
[TimeControl "180+2"]
[Date "2023.01.10"]
[WhiteClock "0:00:08"]
[BlackClock "0:00:05"]

1. e4 {[%clk 0:02:46]}  g6 {[%clk 0:03:00]} 2. Nc3 {[%clk 0:02:44]}  Bg7 {[%clk 0:03:00]} 3. f4 {[%clk 0:02:44]}  c6 {[%clk 0:02:59]} 4. Nf3 {[%clk 0:02:45]}  d5 {[%clk 0:02:59]} 5. d3 {[%clk 0:02:45]}  Bg4 {[%clk 0:02:57]} 6. Be2 {[%clk 0:02:45]}  e6 {[%clk 0:02:47]} 7. O-O {[%clk 0:02:44]}  Nd7 {[%clk 0:02:47]} 8. Qe1 {[%clk 0:02:44]}  Ne7 {[%clk 0:02:45]} 9. Bd2 {[%clk 0:02:40]}  Qb6+ {[%clk 0:02:42]} 10. Kh1 {[%clk 0:02:39]}  Bxf3 {[%clk 0:02:32]} 11. Bxf3 {[%clk 0:02:37]}  O-O {[%clk 0:02:32]} 12. b3 {[%clk 0:02:34]}  a5 {[%clk 0:02:21]} 13. a4 {[%clk 0:02:33]}  Qc7 {[%clk 0:02:15]} 14. Rd1 {[%clk 0:02:32]}  Rad8 {[%clk 0:02:00]} 15. Ne2 {[%clk 0:02:27]}  b6 {[%clk 0:01:57]} 16. Bc3 {[%clk 0:02:23]}  Bxc3 {[%clk 0:01:50]} 17. Qxc3 {[%clk 0:02:23]}  Nc5 {[%clk 0:01:28]} 18. exd5 {[%clk 0:02:11]}  Nxd5 {[%clk 0:01:26]} 19. Bxd5 {[%clk 0:02:11]}  Rxd5 {[%clk 0:01:24]} 20. Qf6 {[%clk 0:01:56]}  Qd8 {[%clk 0:01:15]} 21. Qxd8 {[%clk 0:01:54]}  Rfxd8 {[%clk 0:01:16]} 22. Nc3 {[%clk 0:01:54]}  R5d7 {[%clk 0:01:14]} 23. Rde1 {[%clk 0:01:51]}  Na6 {[%clk 0:01:11]} 24. Ne4 {[%clk 0:01:49]}  Kg7 {[%clk 0:01:10]} 25. Ng5 {[%clk 0:01:47]}  Nb4 {[%clk 0:01:06]} 26. Rf2 {[%clk 0:01:45]}  h6 {[%clk 0:01:04]} 27. Nf3 {[%clk 0:01:43]}  Nd5 {[%clk 0:01:01]} 28. Ne5 {[%clk 0:01:42]}  Rc7 {[%clk 0:01:00]} 29. g3 {[%clk 0:01:37]}  b5 {[%clk 0:00:58]} 30. axb5 {[%clk 0:01:33]}  cxb5 {[%clk 0:00:59]} 31. Ra1 {[%clk 0:01:33]}  Ra8 {[%clk 0:00:58]} 32. Kg2 {[%clk 0:01:28]}  Nc3 {[%clk 0:00:56]} 33. Kf3 {[%clk 0:01:23]}  a4 {[%clk 0:00:55]} 34. bxa4 {[%clk 0:01:23]}  bxa4 {[%clk 0:00:56]} 35. Nc4 {[%clk 0:01:23]}  Kf6 {[%clk 0:00:42]} 36. Ke3 {[%clk 0:01:14]}  Rd8 {[%clk 0:00:41]} 37. Rff1 {[%clk 0:01:01]}  Nd5+ {[%clk 0:00:38]} 38. Kf3 {[%clk 0:00:55]}  Nb4 {[%clk 0:00:31]} 39. Rfc1 {[%clk 0:00:52]}  Ra8 {[%clk 0:00:22]} 40. Ra3 {[%clk 0:00:52]}  Ke7 {[%clk 0:00:19]} 41. Ke2 {[%clk 0:00:51]}  Ra6 {[%clk 0:00:19]} 42. c3 {[%clk 0:00:51]}  Nd5 {[%clk 0:00:17]} 43. Rca1 {[%clk 0:00:49]}  Ra8 {[%clk 0:00:11]} 44. Kd2 {[%clk 0:00:49]}  Rd8 {[%clk 0:00:12]} 45. Rxa4 {[%clk 0:00:47]}  g5 {[%clk 0:00:08]} 46. Ra7 {[%clk 0:00:46]}  Rdd7 {[%clk 0:00:07]} 47. Rxc7 {[%clk 0:00:45]}  Rxc7 {[%clk 0:00:08]} 48. fxg5 {[%clk 0:00:45]}  hxg5 {[%clk 0:00:09]} 49. h4 {[%clk 0:00:46]}  gxh4 {[%clk 0:00:09]} 50. gxh4 {[%clk 0:00:46]}  f5 {[%clk 0:00:08]} 51. Rh1 {[%clk 0:00:42]}  Kf6 {[%clk 0:00:08]} 52. h5 {[%clk 0:00:42]}  Rh7 {[%clk 0:00:09]} 53. h6 {[%clk 0:00:41]}  Nf4 {[%clk 0:00:09]} 54. Ke3 {[%clk 0:00:37]}  Nd5+ {[%clk 0:00:09]} 55. Kd4 {[%clk 0:00:35]}  Ne7 {[%clk 0:00:10]} 56. Nd6 {[%clk 0:00:28]}  Ng8 {[%clk 0:00:08]} 57. c4 {[%clk 0:00:24]}  Rxh6 {[%clk 0:00:08]} 58. Rxh6+ {[%clk 0:00:24]}  Nxh6 {[%clk 0:00:08]} 59. c5 {[%clk 0:00:24]}  Ke7 {[%clk 0:00:09]} 60. Nc4 {[%clk 0:00:23]}  Ng4 {[%clk 0:00:08]} 61. Ne5 {[%clk 0:00:22]}  Nf6 {[%clk 0:00:07]} 62. Ke3 {[%clk 0:00:19]}  Nd5+ {[%clk 0:00:05]} 63. Kf3 {[%clk 0:00:16]}  Kf6 {[%clk 0:00:05]} 64. d4 {[%clk 0:00:16]}  Ke7 {[%clk 0:00:04]} 65. Nc6+ {[%clk 0:00:14]}  Kd7 {[%clk 0:00:04]} 66. Ne5+ {[%clk 0:00:14]}  Ke7 {[%clk 0:00:05]} 67. Nc6+ {[%clk 0:00:14]}  Kf6 {[%clk 0:00:06]} 68. Ne5 {[%clk 0:00:15]}  Nc3 {[%clk 0:00:05]} 69. Ke3 {[%clk 0:00:13]}  Nb5 {[%clk 0:00:05]} 70. Nd3 {[%clk 0:00:13]}  Ke7 {[%clk 0:00:04]} 71. Kf4 {[%clk 0:00:13]}  Nxd4 {[%clk 0:00:04]} 72. Ne5 {[%clk 0:00:07]}  Nb5 {[%clk 0:00:04]} 73. Kg5 {[%clk 0:00:06]}  Nc7 {[%clk 0:00:03]} 74. Ng6+ {[%clk 0:00:06]}  Kf7 {[%clk 0:00:02]} 75. Nh4 {[%clk 0:00:07]}  Nd5 {[%clk 0:00:01]} 76. Nxf5 {[%clk 0:00:07]}  exf5 {[%clk 0:00:02]} 77. Kxf5 {[%clk 0:00:07]}  Ke7 {[%clk 0:00:02]} 78. Ke5 {[%clk 0:00:07]}  Nc7 {[%clk 0:00:03]} 79. Kd4 {[%clk 0:00:07]}  Ke6 {[%clk 0:00:03]} 80. c6 {[%clk 0:00:07]}  Kd6 {[%clk 0:00:04]} 81. Kd3 {[%clk 0:00:08]}  Kxc6 {[%clk 0:00:05]} 1/2-1/2


[Site "https://www.chess.com"]

[Event "Titled Tuesday Blitz January 10 Early 2023"]
[White "Gurevich, Dmitry"]
[Black "Bluebaum, Matthias"]
[WhiteFideId "2000407"]
[BlackFideId "24651516"]
[WhiteElo "2393"]
[BlackElo "2669"]
[Result "0-1"]
[Round "06"]
[TimeControl "180+2"]
[Date "2023.01.10"]
[WhiteClock "0:00:23"]
[BlackClock "0:02:04"]

1. d4 {[%clk 0:03:00]}  d5 {[%clk 0:03:00]} 2. c4 {[%clk 0:03:00]}  e6 {[%clk 0:02:59]} 3. Nc3 {[%clk 0:03:00]}  Bb4 {[%clk 0:02:59]} 4. a3 {[%clk 0:02:57]}  Bxc3+ {[%clk 0:03:00]} 5. bxc3 {[%clk 0:02:57]}  Nf6 {[%clk 0:03:01]} 6. e3 {[%clk 0:02:56]}  c6 {[%clk 0:03:01]} 7. Bd3 {[%clk 0:02:53]}  e5 {[%clk 0:03:02]} 8. cxd5 {[%clk 0:02:42]}  e4 {[%clk 0:03:02]} 9. Bb1 {[%clk 0:02:28]}  cxd5 {[%clk 0:02:59]} 10. Ne2 {[%clk 0:02:28]}  O-O {[%clk 0:03:00]} 11. O-O {[%clk 0:02:26]}  b6 {[%clk 0:03:00]} 12. a4 {[%clk 0:02:23]}  Ba6 {[%clk 0:02:59]} 13. Ba3 {[%clk 0:02:20]}  Re8 {[%clk 0:03:00]} 14. Re1 {[%clk 0:02:20]}  Nc6 {[%clk 0:03:00]} 15. Ba2 {[%clk 0:02:14]}  Na5 {[%clk 0:02:59]} 16. Bb4 {[%clk 0:02:12]}  Nc4 {[%clk 0:02:58]} 17. Ng3 {[%clk 0:02:01]}  Qd7 {[%clk 0:02:55]} 18. f3 {[%clk 0:01:52]}  Nb2 {[%clk 0:02:40]} 19. Qd2 {[%clk 0:01:35]}  Nd3 {[%clk 0:02:40]} 20. Reb1 {[%clk 0:01:29]}  Rac8 {[%clk 0:02:35]} 21. a5 {[%clk 0:01:22]}  h5 {[%clk 0:02:33]} 22. axb6 {[%clk 0:01:21]}  axb6 {[%clk 0:02:32]} 23. Bxd5 {[%clk 0:01:15]}  Nxd5 {[%clk 0:02:13]} 24. Rxa6 {[%clk 0:01:12]}  N3xb4 {[%clk 0:02:14]} 25. cxb4 {[%clk 0:01:10]}  exf3 {[%clk 0:02:15]} 26. e4 {[%clk 0:00:48]}  h4 {[%clk 0:02:05]} 27. exd5 {[%clk 0:00:40]}  hxg3 {[%clk 0:02:04]} 28. hxg3 {[%clk 0:00:38]}  Re2 {[%clk 0:02:03]} 29. Qg5 {[%clk 0:00:24]}  Rxg2+ {[%clk 0:02:03]} 30. Kh1 {[%clk 0:00:23]}  Qh3# {[%clk 0:02:04]} 0-1


[Site "https://www.chess.com"]

[Event "Titled Tuesday Blitz January 10 Early 2023"]
[White "Manelyuk, Daniil"]
[Black "Ozen, Bahadir"]
[WhiteFideId "44173920"]
[BlackFideId "6337058"]
[WhiteElo "2302"]
[BlackElo "2369"]
[Result "1-0"]
[Round "06"]
[TimeControl "180+2"]
[Date "2023.01.10"]
[WhiteClock "0:00:20"]
[BlackClock "0:00:03"]

1. e4 {[%clk 0:03:00]}  d6 {[%clk 0:02:59]} 2. d4 {[%clk 0:03:00]}  Nf6 {[%clk 0:03:00]} 3. Nc3 {[%clk 0:03:00]}  e5 {[%clk 0:03:00]} 4. Nf3 {[%clk 0:02:59]}  Nbd7 {[%clk 0:03:00]} 5. Bc4 {[%clk 0:02:58]}  Be7 {[%clk 0:03:00]} 6. O-O {[%clk 0:02:59]}  O-O {[%clk 0:03:00]} 7. Re1 {[%clk 0:02:59]}  c6 {[%clk 0:03:00]} 8. a4 {[%clk 0:02:59]}  b6 {[%clk 0:03:00]} 9. b3 {[%clk 0:02:54]}  a6 {[%clk 0:03:00]} 10. Ba3 {[%clk 0:02:52]}  Bb7 {[%clk 0:02:56]} 11. Qd2 {[%clk 0:02:46]}  b5 {[%clk 0:02:54]} 12. Bf1 {[%clk 0:02:42]}  exd4 {[%clk 0:02:46]} 13. Nxd4 {[%clk 0:02:43]}  c5 {[%clk 0:02:46]} 14. axb5 {[%clk 0:02:17]}  cxd4 {[%clk 0:02:43]} 15. Qxd4 {[%clk 0:02:18]}  Qc7 {[%clk 0:02:12]} 16. Bd3 {[%clk 0:01:41]}  Rfd8 {[%clk 0:02:00]} 17. Bb4 {[%clk 0:01:34]}  axb5 {[%clk 0:01:56]} 18. Nxb5 {[%clk 0:01:29]}  Qb6 {[%clk 0:01:44]} 19. Qxb6 {[%clk 0:01:19]}  Nxb6 {[%clk 0:01:45]} 20. e5 {[%clk 0:01:19]}  Rxa1 {[%clk 0:01:34]} 21. Rxa1 {[%clk 0:01:20]}  Ne8 {[%clk 0:01:31]} 22. Ra7 {[%clk 0:01:14]}  Rd7 {[%clk 0:01:22]} 23. exd6 {[%clk 0:00:57]}  Bxd6 {[%clk 0:01:08]} 24. Nxd6 {[%clk 0:00:54]}  Nxd6 {[%clk 0:01:08]} 25. Bxd6 {[%clk 0:00:54]}  Nc8 {[%clk 0:01:09]} 26. Rxb7 {[%clk 0:00:38]}  Rxb7 {[%clk 0:01:09]} 27. Bc5 {[%clk 0:00:38]}  Rc7 {[%clk 0:01:08]} 28. b4 {[%clk 0:00:38]}  Ne7 {[%clk 0:00:58]} 29. f3 {[%clk 0:00:36]}  Nc6 {[%clk 0:00:58]} 30. b5 {[%clk 0:00:28]}  Nb8 {[%clk 0:00:55]} 31. Bd6 {[%clk 0:00:27]}  Rb7 {[%clk 0:00:56]} 32. c4 {[%clk 0:00:25]}  Nd7 {[%clk 0:00:56]} 33. c5 {[%clk 0:00:25]}  Ra7 {[%clk 0:00:35]} 34. c6 {[%clk 0:00:24]}  Nb6 {[%clk 0:00:33]} 35. Bc5 {[%clk 0:00:24]}  Ra1+ {[%clk 0:00:34]} 36. Kf2 {[%clk 0:00:24]}  Ra2+ {[%clk 0:00:34]} 37. Kg3 {[%clk 0:00:24]}  Nd5 {[%clk 0:00:31]} 38. b6 {[%clk 0:00:23]}  Ra8 {[%clk 0:00:02]} 39. b7 {[%clk 0:00:21]}  Re8 {[%clk 0:00:03]} 40. Bd6 {[%clk 0:00:20]} 1-0


[Site "https://www.chess.com"]

[Event "Titled Tuesday Blitz January 10 Early 2023"]
[White "Pak, Yevgeniy"]
[Black "Rustemov, Alexander"]
[WhiteFideId "14201712"]
[BlackFideId "4119002"]
[WhiteElo "2384"]
[BlackElo "2525"]
[Result "1/2-1/2"]
[Round "06"]
[TimeControl "180+2"]
[Date "2023.01.10"]
[WhiteClock "0:00:16"]
[BlackClock "0:00:07"]

1. d4 {[%clk 0:03:00]}  d5 {[%clk 0:02:59]} 2. c4 {[%clk 0:03:00]}  dxc4 {[%clk 0:02:56]} 3. Nf3 {[%clk 0:02:59]}  a6 {[%clk 0:02:53]} 4. g3 {[%clk 0:02:47]}  b5 {[%clk 0:02:52]} 5. Bg2 {[%clk 0:02:47]}  Bb7 {[%clk 0:02:52]} 6. O-O {[%clk 0:02:48]}  e6 {[%clk 0:02:51]} 7. a4 {[%clk 0:02:47]}  Nf6 {[%clk 0:02:45]} 8. b3 {[%clk 0:02:47]}  cxb3 {[%clk 0:02:41]} 9. Qxb3 {[%clk 0:02:48]}  b4 {[%clk 0:02:35]} 10. Nbd2 {[%clk 0:02:45]}  a5 {[%clk 0:02:33]} 11. Nc4 {[%clk 0:02:41]}  Be7 {[%clk 0:02:31]} 12. Rd1 {[%clk 0:02:36]}  O-O {[%clk 0:02:31]} 13. Nfe5 {[%clk 0:02:35]}  Bxg2 {[%clk 0:02:28]} 14. Kxg2 {[%clk 0:02:36]}  Qd5+ {[%clk 0:02:14]} 15. f3 {[%clk 0:02:36]}  Nbd7 {[%clk 0:02:03]} 16. e4 {[%clk 0:02:36]}  Qb7 {[%clk 0:02:01]} 17. Bg5 {[%clk 0:02:35]}  Rfe8 {[%clk 0:01:54]} 18. Bxf6 {[%clk 0:02:27]}  Nxf6 {[%clk 0:01:53]} 19. Nxf7 {[%clk 0:02:21]}  Nxe4 {[%clk 0:01:33]} 20. Nce5 {[%clk 0:02:18]}  Ng5 {[%clk 0:01:21]} 21. Nxg5 {[%clk 0:02:14]}  Bxg5 {[%clk 0:01:21]} 22. d5 {[%clk 0:02:14]}  Bf6 {[%clk 0:01:16]} 23. Nd7 {[%clk 0:02:09]}  exd5 {[%clk 0:01:12]} 24. Rxd5 {[%clk 0:02:07]}  Kh8 {[%clk 0:01:04]} 25. Nxf6 {[%clk 0:02:06]}  gxf6 {[%clk 0:01:01]} 26. Rd7 {[%clk 0:02:02]}  Qc6 {[%clk 0:00:38]} 27. Rad1 {[%clk 0:01:26]}  Re2+ {[%clk 0:00:31]} 28. Kf1 {[%clk 0:01:26]}  Re6 {[%clk 0:00:23]} 29. Rxc7 {[%clk 0:01:16]}  Qa6+ {[%clk 0:00:17]} 30. Kg2 {[%clk 0:01:12]}  Qe2+ {[%clk 0:00:15]} 31. Kh3 {[%clk 0:01:11]}  Rae8 {[%clk 0:00:14]} 32. Qd3 {[%clk 0:01:01]}  Qxd3 {[%clk 0:00:14]} 33. Rxd3 {[%clk 0:01:02]}  R8e7 {[%clk 0:00:14]} 34. Rc5 {[%clk 0:00:58]}  Re5 {[%clk 0:00:14]} 35. Rc8+ {[%clk 0:00:48]}  Kg7 {[%clk 0:00:14]} 36. Rdd8 {[%clk 0:00:48]}  Kg6 {[%clk 0:00:11]} 37. f4 {[%clk 0:00:45]}  Rh5+ {[%clk 0:00:10]} 38. Kg4 {[%clk 0:00:44]}  f5+ {[%clk 0:00:09]} 39. Kf3 {[%clk 0:00:44]}  Rxh2 {[%clk 0:00:10]} 40. Rc6+ {[%clk 0:00:37]}  Kf7 {[%clk 0:00:09]} 41. Rdd6 {[%clk 0:00:37]}  Rhe2 {[%clk 0:00:09]} 42. Rf6+ {[%clk 0:00:37]}  Kg7 {[%clk 0:00:09]} 43. Rxf5 {[%clk 0:00:38]}  R2e3+ {[%clk 0:00:07]} 44. Kg4 {[%clk 0:00:38]}  Rb7 {[%clk 0:00:07]} 45. Rxa5 {[%clk 0:00:38]}  b3 {[%clk 0:00:07]} 46. Rc1 {[%clk 0:00:28]}  b2 {[%clk 0:00:07]} 47. Rb1 {[%clk 0:00:28]}  Rc3 {[%clk 0:00:07]} 48. Rb5 {[%clk 0:00:28]}  Rxb5 {[%clk 0:00:07]} 49. axb5 {[%clk 0:00:29]}  Rb3 {[%clk 0:00:07]} 50. Kf5 {[%clk 0:00:22]}  Rxb5+ {[%clk 0:00:07]} 51. Ke4 {[%clk 0:00:22]}  Kf6 {[%clk 0:00:07]} 52. g4 {[%clk 0:00:22]}  Rb4+ {[%clk 0:00:07]} 53. Ke3 {[%clk 0:00:22]}  Rb3+ {[%clk 0:00:07]} 54. Ke4 {[%clk 0:00:22]}  Kg6 {[%clk 0:00:07]} 55. Ke5 {[%clk 0:00:22]}  Rb5+ {[%clk 0:00:07]} 56. Ke6 {[%clk 0:00:22]}  Rb6+ {[%clk 0:00:07]} 57. Ke5 {[%clk 0:00:22]}  Rb5+ {[%clk 0:00:07]} 58. Ke6 {[%clk 0:00:22]}  Rb6+ {[%clk 0:00:07]} 59. Ke5 {[%clk 0:00:23]}  Kf7 {[%clk 0:00:08]} 60. Kf5 {[%clk 0:00:18]}  Rb5+ {[%clk 0:00:07]} 61. Ke4 {[%clk 0:00:18]}  Ke6 {[%clk 0:00:08]} 62. Kd4 {[%clk 0:00:19]}  Rb4+ {[%clk 0:00:08]} 63. Ke3 {[%clk 0:00:19]}  h6 {[%clk 0:00:07]} 64. f5+ {[%clk 0:00:17]}  Kf6 {[%clk 0:00:07]} 65. Kf3 {[%clk 0:00:18]}  Kg5 {[%clk 0:00:07]} 66. Ke3 {[%clk 0:00:16]}  Rb5 {[%clk 0:00:06]} 67. Kf3 {[%clk 0:00:16]}  Kf6 {[%clk 0:00:07]} 68. Kf4 {[%clk 0:00:16]}  Rb4+ {[%clk 0:00:07]} 69. Kg3 {[%clk 0:00:16]}  Ke5 {[%clk 0:00:08]} 70. Kh4 {[%clk 0:00:16]}  Kd4 {[%clk 0:00:07]} 71. Kh5 {[%clk 0:00:17]}  Rb6 {[%clk 0:00:07]} 72. g5 {[%clk 0:00:16]}  hxg5 {[%clk 0:00:08]} 73. Kxg5 {[%clk 0:00:17]}  Ke5 {[%clk 0:00:08]} 74. f6 {[%clk 0:00:15]}  Rxf6 {[%clk 0:00:07]} 75. Rxb2 {[%clk 0:00:16]}  Rf5+ {[%clk 0:00:08]} 76. Kg4 {[%clk 0:00:16]}  Rf4+ {[%clk 0:00:07]} 1/2-1/2


[Site "https://www.chess.com"]